fUSD/lending_fUSD_20260507
["ID","MTS","AMOUNT","RATE_DAILY","PERIOD"]
[421768597,1778123525000,-151.0,0.00033283,7]
[421768600,1778123525000,-224.47,0.00033284,2]
[421768602,1778123525000,-217.0,0.00033285,30]
[421768601,1778123525000,-154.34,0.00033284,2]
[421768599,1778123525000,-151.0,0.00033283,7]
[421768606,1778123525000,-161.0,0.00033285,30]
[421768605,1778123525000,-226.0,0.00033285,30]
[421768603,1778123525000,-159.0,0.00033285,30]
[421768607,1778123525000,-54092.61,0.000333,7]
[421768616,1778123525000,-2000.0,0.00033407,120]
[421768615,1778123525000,-696.249343,0.000333,7]
[421768609,1778123525000,-151.0,0.000333,7]
[421768610,1778123525000,-151.32584,0.000333,7]
[421768608,1778123525000,-151.0,0.000333,7]
[421768592,1778123525000,-6678.37700795,0.00033,30]
[421768613,1778123525000,-696.249343,0.000333,7]
[421768598,1778123525000,-151.0,0.00033283,7]
[421768591,1778123525000,-570.407597,0.00033,14]
[421768573,1778123525000,-800.0,0.00032435,2]
[421768588,1778123525000,-212.862241,0.00033,120]
[421768612,1778123525000,-696.249343,0.000333,7]
[421768570,1778123525000,-800.0,0.00032435,2]
[421768571,1778123525000,-800.0,0.00032435,2]
[421768569,1778123525000,-800.0,0.00032435,2]
[421768565,1778123525000,-152.0,0.00032351,6]
[421768564,1778123525000,-151.28500223,0.00032305,2]
[421768572,1778123525000,-800.0,0.00032435,2]
[421768566,1778123525000,-800.0,0.00032435,2]
[421768568,1778123525000,-800.0,0.00032435,2]
[421768567,1778123525000,-800.0,0.00032435,2]
[421768574,1778123525000,-800.0,0.00032435,2]
[421768577,1778123525000,-502.0,0.00032744,8]
[421768576,1778123525000,-150.0,0.00032562,2]
[421768580,1778123525000,-327.37,0.00032877,2]
[421768578,1778123525000,-150.0,0.00032821,2]
[421768585,1778123525000,-198.59099089,0.00033,120]
[421768584,1778123525000,-163.95555127,0.00033,120]
[421768581,1778123525000,-1878.16925012,0.00033,120]
[421768582,1778123525000,-259.03663455,0.00033,120]
[421768575,1778123525000,-455.0,0.00032435,2]
[421768583,1778123525000,-1713.2235571,0.00033,120]
[421768586,1778123525000,-1006.34383222,0.00033,120]
[421768587,1778123525000,-1250.68,0.00033,30]
[421768590,1778123525000,-1000.0,0.00033,2]
[421768611,1778123525000,-259.398188,0.000333,7]
[421768579,1778123525000,-191.0,0.00032821,2]
[421768617,1778123525000,-502.0,0.00033545,9]
[421768646,1778123525000,-858.0,0.00034285,30]
[421768644,1778123525000,-217.0,0.00034285,30]
[421768645,1778123525000,-159.0,0.00034285,30]
[421768643,1778123525000,-155.0,0.00034273,30]
[421768647,1778123525000,-226.0,0.00034285,30]
[421768653,1778123525000,-433.0,0.0003449,10]
[421768654,1778123525000,-1250.68,0.000345,30]
[421768651,1778123525000,-2299.4616182,0.00034465,7]
[421768655,1778123525000,-54092.61,0.000345,7]
[421768652,1778123525000,-272.95547625,0.00034465,7]
[421768659,1778123525000,-925.0,0.00034508,2]
[421768656,1778123525000,-150.0,0.00034508,2]
[421768657,1778123525000,-150.0,0.00034508,2]
[421768658,1778123525000,-3537.0,0.00034508,2]
[421768660,1778123525000,-1500.0,0.00034795,2]
[421768662,1778123525000,-152.98980593,0.000349,120]
[421768663,1778123525000,-151.0,0.0003491,7]
[421768666,1778123525000,-13332.85,0.0003491,30]
[421768667,1778123525000,-1878.16925012,0.00035,120]
[421768665,1778123525000,-151.0,0.0003491,7]
[421768664,1778123525000,-151.0,0.0003491,7]
[421768668,1778123525000,-259.03663455,0.00035,120]
[421768661,1778123525000,-894.54799109,0.0003488,120]
[421768649,1778123525000,-502.0,0.00034346,9]
[421768640,1778123525000,-4000.0,0.00034247,60]
[421768614,1778123525000,-696.249343,0.000333,7]
[421768648,1778123525000,-161.0,0.00034285,30]
[421768650,1778123525000,-361.0,0.00034352,2]
[421768618,1778123525000,-151.0,0.00033619,7]
[421768619,1778123525000,-151.0,0.00033619,7]
[421768621,1778123525000,-156.370338,0.00033619,7]
[421768620,1778123525000,-285.992992,0.00033619,7]
[421768624,1778123525000,-151.0,0.00033619,7]
[421768623,1778123525000,-151.0,0.00033619,7]
[421768627,1778123525000,-1713.2235571,0.000339,120]
[421768622,1778123525000,-151.0,0.00033619,7]
[421768625,1778123525000,-1878.16925012,0.000339,120]
[421768629,1778123525000,-1006.34383222,0.000339,120]
[421768637,1778123525000,-296.0,0.00034014,2]
[421768626,1778123525000,-259.03663455,0.000339,120]
[421768638,1778123525000,-838.0,0.00034182,7]
[421768630,1778123525000,-212.862241,0.000339,120]
[421768631,1778123525000,-7016.45368342,0.00033916,2]
[421768632,1778123525000,-5000.0,0.00033916,2]
[421768641,1778123525000,-4000.0,0.00034247,60]
[421768633,1778123525000,-5000.0,0.00033916,2]
[421768636,1778123525000,-152.0,0.00033919,7]
[421768635,1778123525000,-5000.0,0.00033916,2]
[421768634,1778123525000,-5000.0,0.00033916,2]
[421768639,1778123525000,-150.0,0.0003419,2]
[421768642,1778123525000,-294.0,0.00034273,30]
[421768628,1778123525000,-198.59099089,0.000339,120]
[421768709,1778123526000,-1000.0,0.00035616,10]
[421768702,1778123526000,-507.858466,0.0003561,7]
[421768704,1778123526000,-467.607674,0.0003561,7]
[421768703,1778123526000,-467.607674,0.0003561,7]
[421768695,1778123526000,-292.670415,0.000356,7]
[421768700,1778123526000,-507.858466,0.0003561,7]
[421768696,1778123526000,-170402.30394645,0.0003561,2]
[421768694,1778123526000,-292.670415,0.000356,7]
[421768707,1778123526000,-500.0,0.00035616,5]
[421768701,1778123526000,-467.607674,0.0003561,7]
[421768706,1778123526000,-184.61,0.00035616,60]
[421768717,1778123526000,-1000.0,0.00035616,10]
[421768708,1778123526000,-500.0,0.00035616,5]
[421768711,1778123526000,-1000.0,0.00035616,10]
[421768718,1778123526000,-1000.0,0.00035616,10]
[421768714,1778123526000,-1000.0,0.00035616,10]
[421768710,1778123526000,-1000.0,0.00035616,10]
[421768719,1778123526000,-1000.0,0.00035616,10]
[421768720,1778123526000,-1000.0,0.00035616,10]
[421768712,1778123526000,-1000.0,0.00035616,10]
[421768713,1778123526000,-1000.0,0.00035616,10]
[421768716,1778123526000,-1000.0,0.00035616,10]
[421768693,1778123526000,-292.670415,0.000356,7]
[421768705,1778123526000,-467.607674,0.0003561,7]
[421768692,1778123526000,-292.670415,0.000356,7]
[421768682,1778123526000,-157.18553866,0.00035273,30]
[421768697,1778123526000,-4498.85382229,0.0003561,2]
[421768721,1778123526000,-1000.0,0.00035616,10]
[421768669,1778123526000,-1713.2235571,0.00035,120]
[421768671,1778123526000,-1006.34383222,0.00035,120]
[421768670,1778123526000,-198.59099089,0.00035,120]
[421768674,1778123526000,-1000.0,0.00035,3]
[421768675,1778123526000,-520.52635618,0.00035,3]
[421768672,1778123526000,-150.0,0.00035,2]
[421768679,1778123526000,-502.0,0.00035147,10]
[421768673,1778123526000,-180.374,0.00035,2]
[421768676,1778123526000,-1945.95854788,0.00035,2]
[421768678,1778123526000,-185.892727,0.00035007,120]
[421768698,1778123526000,-507.858466,0.0003561,7]
[421768677,1778123526000,-19590.65182165,0.00035,120]
[421768683,1778123526000,-217.0,0.00035285,30]
[421768680,1778123526000,-1516.98085919,0.000352,7]
[421768689,1778123526000,-615.38624199,0.00035478,2]
[421768685,1778123526000,-858.0,0.00035285,30]
[421768687,1778123526000,-161.0,0.00035285,30]
[421768684,1778123526000,-165.0,0.00035285,30]
[421768686,1778123526000,-226.0,0.00035285,30]
[421768688,1778123526000,-882.0,0.000354,2]
[421768691,1778123526000,-54092.61,0.000356,7]
[421768690,1778123526000,-152.0,0.00035486,8]
[421768699,1778123526000,-507.858466,0.0003561,7]
[421768681,1778123526000,-294.0,0.00035273,30]
[421768724,1778123526000,-327.37,0.00035616,2]
[421768715,1778123526000,-1000.0,0.00035616,10]
[421768723,1778123526000,-1000.0,0.00035616,10]
[421768752,1778123526000,-176.14,0.00036673,10]
[421768753,1778123526000,-54092.61,0.000367,7]
[421768755,1778123526000,-273.88,0.00036719,10]
[421768757,1778123526000,-680.9,0.00036749,10]
[421768767,1778123526000,-350.0,0.00037053,7]
[421768756,1778123526000,-502.0,0.00036748,12]
[421768758,1778123526000,-26415.97603197,0.00036756,2]
[421768762,1778123526000,-2000.0,0.00036986,60]
[421768759,1778123526000,-1634.86251983,0.000368,2]
[421768761,1778123526000,-218.07676057,0.00036943,2]
[421768760,1778123526000,-570.9,0.00036802,10]
[421768754,1778123526000,-1000.0,0.00036712,5]
[421768765,1778123526000,-4685.30481988,0.00037,3]
[421768763,1778123526000,-521.94,0.00036986,60]
[421768768,1778123526000,-152.0,0.00037054,9]
[421768770,1778123526000,-1034.8742688,0.0003711,120]
[421768771,1778123526000,-4010.0,0.00037146,15]
[421768769,1778123526000,-233660.79893292,0.000371,2]
[421768772,1778123526000,-189.47926865,0.000372,120]
[421768773,1778123526000,-1500.0,0.0003726,5]
[421768774,1778123526000,-294.0,0.00037273,30]
[421768776,1778123526000,-858.0,0.00037285,30]
[421768725,1778123526000,-1000.0,0.00035616,10]
[421768775,1778123526000,-217.0,0.00037285,30]
[421768766,1778123526000,-4500.0,0.00037,2]
[421768751,1778123526000,-1165.27,0.00036587,10]
[421768764,1778123526000,-365.0,0.00037,2]
[421768747,1778123526000,-858.0,0.00036285,30]
[421768732,1778123526000,-615.43448129,0.000359,120]
[421768744,1778123526000,-988.48,0.00036239,10]
[421768726,1778123526000,-1000.0,0.00035616,10]
[421768729,1778123526000,-150.0,0.00035899,2]
[421768727,1778123526000,-1000.0,0.00035616,10]
[421768731,1778123526000,-594.33145555,0.000359,30]
[421768730,1778123526000,-1250.68,0.000359,30]
[421768734,1778123526000,-1878.16925012,0.00036,120]
[421768740,1778123526000,-1630.48,0.00036028,10]
[421768741,1778123526000,-838.0,0.00036153,30]
[421768742,1778123526000,-1630.0,0.00036164,2]
[421768728,1778123526000,-3074.49745027,0.00035694,2]
[421768722,1778123526000,-1000.0,0.00035616,10]
[421768748,1778123526000,-226.0,0.00036285,30]
[421768743,1778123526000,-2500.0,0.00036169,10]
[421768746,1778123526000,-217.0,0.00036285,30]
[421768750,1778123526000,-1000.0,0.00036438,5]
[421768749,1778123526000,-161.0,0.00036285,30]
[421768737,1778123526000,-1006.34383222,0.00036,120]
[421768745,1778123526000,-294.0,0.00036273,30]
[421768738,1778123526000,-160.0,0.00036,120]
[421768739,1778123526000,-322.27718165,0.00036,120]
[421768736,1778123526000,-1713.2235571,0.00036,120]
[421768735,1778123526000,-259.03663455,0.00036,120]
[421768733,1778123526000,-502.0,0.00035947,11]
[421768827,1778123527000,-1036.63994312,0.00038041,120]
[421768818,1778123527000,-1036.63994312,0.00037886,120]
[421768817,1778123527000,-535.47017049,0.00037855,120]
[421768819,1778123527000,-25844.36104845,0.000379,7]
[421768813,1778123527000,-1250.68,0.000378,30]
[421768810,1778123527000,-900.0,0.00037756,21]
[421768808,1778123527000,-624.72458379,0.00037751,120]
[421768809,1778123527000,-500.0,0.00037756,21]
[421768811,1778123527000,-624.72458379,0.0003777,120]
[421768812,1778123527000,-4010.0,0.0003778,15]
[421768821,1778123527000,-4200.41957436,0.00038,4]
[421768814,1778123527000,-825.27918447,0.000378,2]
[421768815,1778123527000,-1501.85498623,0.00037808,5]
[421768837,1778123527000,-506.29878837,0.00038148,120]
[421768825,1778123527000,-624.72458379,0.00038025,120]
[421768826,1778123527000,-564.30199412,0.00038037,120]
[421768828,1778123527000,-624.72458379,0.0003806,120]
[421768820,1778123527000,-1036.63994312,0.0003793,120]
[421768824,1778123527000,-213.0341433,0.00038,30]
[421768822,1778123527000,-214.63993676,0.00038,30]
[421768823,1778123527000,-1055.68636499,0.00038,2]
[421768830,1778123527000,-1036.63994312,0.00038092,120]
[421768832,1778123527000,-356.53277771,0.000381,33]
[421768841,1778123527000,-150.0,0.00038199,30]
[421768838,1778123527000,-535.47017049,0.00038166,120]
[421768831,1778123527000,-4010.0,0.00038097,15]
[421768807,1778123527000,-4281.44123219,0.00037746,120]
[421768829,1778123527000,-162.93839128,0.00038082,5]
[421768805,1778123527000,-150.0,0.00037694,2]
[421768789,1778123527000,-225.825146,0.0003762,2]
[421768806,1778123527000,-1036.63994312,0.00037728,120]
[421768839,1778123527000,-1036.63994312,0.00038193,120]
[421768779,1778123527000,-1886.18799576,0.00037413,120]
[421768777,1778123527000,-226.0,0.00037285,30]
[421768778,1778123527000,-161.0,0.00037285,30]
[421768781,1778123527000,-3537.0,0.00037508,2]
[421768790,1778123527000,-38332.54191184,0.0003762,2]
[421768791,1778123527000,-151.0,0.0003762,7]
[421768792,1778123527000,-151.0,0.0003762,7]
[421768780,1778123527000,-4010.0,0.00037463,15]
[421768782,1778123527000,-925.0,0.00037508,2]
[421768784,1778123527000,-359.10831272,0.00037528,3]
[421768783,1778123527000,-1886.18799576,0.00037517,120]
[421768785,1778123527000,-502.0,0.00037549,13]
[421768816,1778123527000,-535.47017049,0.00037833,120]
[421768788,1778123527000,-350.0,0.00037604,6]
[421768787,1778123527000,-1448.496,0.000376,49]
[421768795,1778123527000,-151.0,0.0003762,7]
[421768794,1778123527000,-151.0,0.0003762,7]
[421768798,1778123527000,-151.0,0.0003762,7]
[421768797,1778123527000,-151.0,0.0003762,7]
[421768793,1778123527000,-152.835895,0.0003762,7]
[421768796,1778123527000,-151.0,0.0003762,7]
[421768804,1778123527000,-624.72458379,0.00037679,120]
[421768799,1778123527000,-568.32,0.00037637,2]
[421768803,1778123527000,-1036.63994312,0.00037673,120]
[421768801,1778123527000,-535.47017049,0.00037663,120]
[421768800,1778123527000,-624.72458379,0.00037644,120]
[421768802,1778123527000,-624.72458379,0.00037666,120]
[421768786,1778123527000,-4401.87185937,0.0003759,2]
[421768836,1778123527000,-838.0,0.00038125,30]
[421768887,1778123527000,-1145.41934579,0.00038299,2]
[421768835,1778123527000,-506.29878837,0.00038111,120]
[421768878,1778123527000,-1065.27537832,0.00038299,2]
[421768871,1778123527000,-1097.81421432,0.00038299,2]
[421768873,1778123527000,-491.92676023,0.00038299,2]
[421768874,1778123527000,-603.53328922,0.00038299,2]
[421768872,1778123527000,-301.07705346,0.00038299,2]
[421768875,1778123527000,-300.0,0.00038299,2]
[421768876,1778123527000,-526.92962811,0.00038299,2]
[421768877,1778123527000,-892.04454699,0.00038299,2]
[421768880,1778123527000,-302.70352866,0.00038299,2]
[421768882,1778123527000,-300.0,0.00038299,2]
[421768883,1778123527000,-300.0,0.00038299,2]
[421768886,1778123527000,-343.45478996,0.00038299,2]
[421768885,1778123527000,-300.0,0.00038299,2]
[421768879,1778123527000,-728.13908887,0.00038299,2]
[421768881,1778123527000,-300.0,0.00038299,2]
[421768888,1778123527000,-310.42341596,0.00038299,2]
[421768889,1778123527000,-867.09387336,0.00038299,2]
[421768893,1778123527000,-483.91398301,0.00038299,2]
[421768892,1778123527000,-300.0,0.00038299,2]
[421768891,1778123527000,-300.0,0.00038299,2]
[421768894,1778123527000,-451.20756317,0.00038299,2]
[421768896,1778123527000,-309.48280054,0.00038299,2]
[421768900,1778123527000,-892.04454699,0.00038299,2]
[421768898,1778123527000,-309.36726268,0.00038299,2]
[421768897,1778123527000,-483.34199355,0.00038299,2]
[421768899,1778123527000,-1065.27537832,0.00038299,2]
[421768895,1778123527000,-301.11222577,0.00038299,2]
[421768840,1778123527000,-151.0,0.00038196,14]
[421768890,1778123527000,-311.77565027,0.00038299,2]
[421768870,1778123527000,-309.36726268,0.00038299,2]
[421768884,1778123527000,-852.88686294,0.00038299,2]
[421768869,1778123527000,-483.34199355,0.00038299,2]
[421768868,1778123527000,-300.0,0.00038299,2]
[421768834,1778123527000,-4281.44123219,0.00038104,120]
[421768842,1778123527000,-55000.0,0.000382,120]
[421768843,1778123527000,-197.26875,0.00038203,30]
[421768844,1778123527000,-3447.42550266,0.00038218,2]
[421768850,1778123527000,-208.0,0.0003829,2]
[421768848,1778123527000,-883.32876101,0.0003827,2]
[421768846,1778123527000,-624.72458379,0.00038255,120]
[421768849,1778123527000,-200.0,0.0003829,2]
[421768845,1778123527000,-350.0,0.00038227,5]
[421768847,1778123527000,-151.2,0.0003826,2]
[421768853,1778123527000,-800.0,0.0003829,13]
[421768851,1778123527000,-800.0,0.0003829,13]
[421768852,1778123527000,-800.0,0.0003829,13]
[421768833,1778123527000,-189.47926865,0.00038103,120]
[421768865,1778123527000,-451.20756317,0.00038299,2]
[421768855,1778123527000,-800.0,0.0003829,13]
[421768858,1778123527000,-201.02921811,0.0003829,2]
[421768860,1778123527000,-179.79087416,0.00038299,2]
[421768863,1778123527000,-300.0,0.00038299,2]
[421768864,1778123527000,-481.27140702,0.00038299,2]
[421768859,1778123527000,-803.31275557,0.0003829,2]
[421768867,1778123527000,-301.12522993,0.00038299,2]
[421768856,1778123527000,-831.0,0.0003829,13]
[421768862,1778123527000,-300.0,0.00038299,2]
[421768854,1778123527000,-800.0,0.0003829,13]
[421768857,1778123527000,-251.28652264,0.0003829,2]
[421768866,1778123527000,-300.0,0.00038299,2]
[421768861,1778123527000,-310.41737646,0.00038299,2]
[421768952,1778123528000,-396.13518891,0.00038299,2]
[421768949,1778123528000,-1801.4928656,0.00038299,2]
[421768943,1778123528000,-300.0,0.00038299,2]
[421768959,1778123528000,-451.06951105,0.00038299,2]
[421768939,1778123528000,-605.93408872,0.00038299,2]
[421768937,1778123528000,-300.0,0.00038299,2]
[421768936,1778123528000,-300.0,0.00038299,2]
[421768935,1778123528000,-300.0,0.00038299,2]
[421768940,1778123528000,-300.0,0.00038299,2]
[421768933,1778123528000,-516.7170918,0.00038299,2]
[421768934,1778123528000,-1092.9925252,0.00038299,2]
[421768948,1778123528000,-300.0,0.00038299,2]
[421768938,1778123528000,-300.0,0.00038299,2]
[421768942,1778123528000,-895.5766849,0.00038299,2]
[421768966,1778123528000,-300.8782727,0.00038299,2]
[421768946,1778123528000,-300.0,0.00038299,2]
[421768947,1778123528000,-852.88686294,0.00038299,2]
[421768950,1778123528000,-300.77822011,0.00038299,2]
[421768951,1778123528000,-1145.41934579,0.00038299,2]
[421768954,1778123528000,-310.41737646,0.00038299,2]
[421768964,1778123528000,-300.0,0.00038299,2]
[421768965,1778123528000,-309.36726268,0.00038299,2]
[421768961,1778123528000,-300.0,0.00038299,2]
[421768953,1778123528000,-863.09416045,0.00038299,2]
[421768956,1778123528000,-300.0,0.00038299,2]
[421768958,1778123528000,-370.10410288,0.00038299,2]
[421768955,1778123528000,-300.0,0.00038299,2]
[421768932,1778123528000,-309.48280054,0.00038299,2]
[421768944,1778123528000,-300.10527974,0.00038299,2]
[421768930,1778123528000,-301.11222577,0.00038299,2]
[421768901,1778123528000,-310.65835399,0.00038299,2]
[421768931,1778123528000,-300.0,0.00038299,2]
[421768904,1778123528000,-852.88686294,0.00038299,2]
[421768903,1778123528000,-300.0,0.00038299,2]
[421768902,1778123528000,-300.0,0.00038299,2]
[421768906,1778123528000,-300.0,0.00038299,2]
[421768916,1778123528000,-494.0316017,0.00038299,2]
[421768905,1778123528000,-300.0,0.00038299,2]
[421768917,1778123528000,-300.0,0.00038299,2]
[421768907,1778123528000,-1793.64716308,0.00038299,2]
[421768910,1778123528000,-309.11524289,0.00038299,2]
[421768908,1778123528000,-345.13076405,0.00038299,2]
[421768913,1778123528000,-309.36726268,0.00038299,2]
[421768915,1778123528000,-300.0,0.00038299,2]
[421768909,1778123528000,-1145.41934579,0.00038299,2]
[421768941,1778123528000,-300.0,0.00038299,2]
[421768912,1778123528000,-485.35996228,0.00038299,2]
[421768911,1778123528000,-301.03516856,0.00038299,2]
[421768919,1778123528000,-300.0,0.00038299,2]
[421768924,1778123528000,-852.88686294,0.00038299,2]
[421768920,1778123528000,-529.16442721,0.00038299,2]
[421768929,1778123528000,-451.20756317,0.00038299,2]
[421768922,1778123528000,-892.04454699,0.00038299,2]
[421768921,1778123528000,-1069.39557208,0.00038299,2]
[421768918,1778123528000,-603.53328922,0.00038299,2]
[421768923,1778123528000,-300.0,0.00038299,2]
[421768925,1778123528000,-300.0,0.00038299,2]
[421768928,1778123528000,-300.0,0.00038299,2]
[421768927,1778123528000,-1150.67753294,0.00038299,2]
[421768926,1778123528000,-1793.64716308,0.00038299,2]
[421768914,1778123528000,-1088.17083607,0.00038299,2]
[421768957,1778123528000,-481.27140702,0.00038299,2]
[421768945,1778123528000,-300.0,0.00038299,2]
[421768962,1778123528000,-300.0,0.00038299,2]
[421768995,1778123528000,-1560.0,0.00038356,30]
[421769000,1778123528000,-500.0,0.000384,7]
[421769006,1778123528000,-500.0,0.000384,7]
[421768998,1778123528000,-477.0,0.00038387,2]
[421769005,1778123528000,-500.0,0.000384,7]
[421769004,1778123528000,-500.0,0.000384,7]
[421769002,1778123528000,-500.0,0.000384,7]
[421769003,1778123528000,-500.0,0.000384,7]
[421769008,1778123528000,-500.0,0.000384,7]
[421769018,1778123528000,-500.0,0.000384,7]
[421769019,1778123528000,-500.0,0.000384,7]
[421769020,1778123528000,-500.0,0.000384,7]
[421769009,1778123528000,-500.0,0.000384,7]
[421769015,1778123528000,-500.0,0.000384,7]
[421769014,1778123528000,-500.0,0.000384,7]
[421769017,1778123528000,-500.0,0.000384,7]
[421769007,1778123528000,-500.0,0.000384,7]
[421769010,1778123528000,-500.0,0.000384,7]
[421769012,1778123528000,-500.0,0.000384,7]
[421769011,1778123528000,-500.0,0.000384,7]
[421769013,1778123528000,-500.0,0.000384,7]
[421769016,1778123528000,-500.0,0.000384,7]
[421769021,1778123528000,-500.0,0.000384,7]
[421769023,1778123528000,-500.0,0.000384,7]
[421769024,1778123528000,-500.0,0.000384,7]
[421769026,1778123528000,-500.0,0.000384,7]
[421769025,1778123528000,-500.0,0.000384,7]
[421769027,1778123528000,-500.0,0.000384,7]
[421769022,1778123528000,-500.0,0.000384,7]
[421769001,1778123528000,-500.0,0.000384,7]
[421768999,1778123528000,-150.0,0.00038399,30]
[421768963,1778123528000,-483.34199355,0.00038299,2]
[421768996,1778123528000,-477.0,0.0003836,2]
[421768997,1778123528000,-200.0,0.00038381,20]
[421768960,1778123528000,-300.0,0.00038299,2]
[421768968,1778123528000,-300.0,0.00038299,2]
[421768978,1778123528000,-344.26739,0.000383,100]
[421768967,1778123528000,-300.0,0.00038299,2]
[421768980,1778123528000,-344.26739,0.000383,100]
[421768971,1778123528000,-543.20254788,0.00038299,2]
[421768973,1778123528000,-300.0,0.00038299,2]
[421768979,1778123528000,-344.26739,0.000383,100]
[421768969,1778123528000,-300.0,0.00038299,2]
[421768972,1778123528000,-300.0,0.00038299,2]
[421768977,1778123528000,-530.45437532,0.00038299,2]
[421768976,1778123528000,-300.0,0.00038299,2]
[421768975,1778123528000,-603.53328922,0.00038299,2]
[421768970,1778123528000,-487.46161973,0.00038299,2]
[421768992,1778123528000,-502.0,0.0003835,14]
[421768994,1778123528000,-333.0,0.00038356,120]
[421768974,1778123528000,-300.0,0.00038299,2]
[421768991,1778123528000,-1069.4599,0.00038346,120]
[421768989,1778123528000,-949.085,0.00038346,120]
[421768985,1778123528000,-250.0,0.00038316,120]
[421768987,1778123528000,-1036.63994312,0.00038328,120]
[421768986,1778123528000,-282.31,0.00038316,120]
[421768988,1778123528000,-1548.027856,0.00038338,60]
[421768984,1778123528000,-160.74583464,0.00038315,120]
[421768981,1778123528000,-344.26739,0.000383,100]
[421768983,1778123528000,-344.2674,0.000383,100]
[421768993,1778123528000,-385.2731,0.00038351,2]
[421768982,1778123528000,-344.2674,0.000383,100]
[421768990,1778123528000,-949.085,0.00038346,120]
[421769050,1778123529000,-500.0,0.000384,7]
[421769056,1778123529000,-500.0,0.000384,7]
[421769061,1778123529000,-500.0,0.000384,7]
[421769049,1778123529000,-500.0,0.000384,7]
[421769057,1778123529000,-500.0,0.000384,7]
[421769059,1778123529000,-500.0,0.000384,7]
[421769055,1778123529000,-500.0,0.000384,7]
[421769054,1778123529000,-500.0,0.000384,7]
[421769058,1778123529000,-500.0,0.000384,7]
[421769066,1778123529000,-500.0,0.000384,7]
[421769063,1778123529000,-500.0,0.000384,7]
[421769073,1778123529000,-500.0,0.000384,7]
[421769074,1778123529000,-500.0,0.000384,7]
[421769062,1778123529000,-500.0,0.000384,7]
[421769065,1778123529000,-500.0,0.000384,7]
[421769064,1778123529000,-500.0,0.000384,7]
[421769069,1778123529000,-500.0,0.000384,7]
[421769052,1778123529000,-500.0,0.000384,7]
[421769060,1778123529000,-500.0,0.000384,7]
[421769051,1778123529000,-500.0,0.000384,7]
[421769036,1778123529000,-500.0,0.000384,7]
[421769048,1778123529000,-500.0,0.000384,7]
[421769028,1778123529000,-500.0,0.000384,7]
[421769031,1778123529000,-500.0,0.000384,7]
[421769032,1778123529000,-500.0,0.000384,7]
[421769030,1778123529000,-500.0,0.000384,7]
[421769029,1778123529000,-500.0,0.000384,7]
[421769033,1778123529000,-500.0,0.000384,7]
[421769034,1778123529000,-500.0,0.000384,7]
[421769068,1778123529000,-500.0,0.000384,7]
[421769035,1778123529000,-500.0,0.000384,7]
[421769053,1778123529000,-500.0,0.000384,7]
[421769046,1778123529000,-500.0,0.000384,7]
[421769038,1778123529000,-500.0,0.000384,7]
[421769039,1778123529000,-500.0,0.000384,7]
[421769037,1778123529000,-500.0,0.000384,7]
[421769045,1778123529000,-500.0,0.000384,7]
[421769040,1778123529000,-500.0,0.000384,7]
[421769042,1778123529000,-500.0,0.000384,7]
[421769041,1778123529000,-500.0,0.000384,7]
[421769043,1778123529000,-500.0,0.000384,7]
[421769044,1778123529000,-500.0,0.000384,7]